bitfinex-derivatives/quotes_ETHF0:USTF0_20260201
["timestamp","ask_amount","ask_price","bid_price","bid_amount"]
[1769917540125,0.14861534,2442.5,2441.8,3.967]
[1769917540925,0.14861534,2442.3,2441.8,3.967]
[1769917544627,2.42732759,2442.1,2441.0,4.249862]
[1769917544824,0.15518126,2441.9,2441.0,4.249862]
[1769917545130,3.89448426,2441.8,2441.0,4.249862]
[1769917545330,0.15518126,2441.8,2441.0,4.249862]
[1769917546721,3.73851478,2441.7,2441.0,4.249862]
[1769917546920,0.15518126,2441.8,2441.0,4.249862]
[1769917547427,0.15518126,2442.3,2441.1,0.14739033]
[1769917547630,3.73816394,2442.2,2441.1,0.14739033]
[1769917547830,3.73816394,2442.1,2441.1,0.14739033]
[1769917548027,2.42732759,2442.4,2441.1,0.14739033]
[1769917548229,0.15518126,2442.5,2441.1,0.14739033]
[1769917548430,3.70759735,2442.4,2441.1,0.14739033]
[1769917548627,0.15518126,2442.5,2441.1,0.14739033]
[1769917548827,3.70817484,2442.4,2441.1,0.14739033]
[1769917549132,0.15518126,2442.5,2441.1,0.14739033]
[1769917549432,3.70917532,2442.4,2441.1,0.14739033]
[1769917549634,0.15518126,2442.5,2441.1,0.14739033]
[1769917549824,3.70918357,2442.4,2441.1,0.14739033]
[1769917550027,0.15518126,2442.5,2441.1,0.14739033]
[1769917550228,3.70919856,2442.4,2441.1,0.14739033]
[1769917550432,0.15518126,2442.5,2441.1,0.14739033]
[1769917550734,3.71085284,2442.4,2441.3,0.14739033]
[1769917551034,0.15518126,2442.5,2441.3,0.14739033]
[1769917551228,3.71174218,2442.4,2441.3,0.14739033]
[1769917551430,0.15518126,2442.5,2441.3,0.14739033]
[1769917551636,3.71193336,2442.4,2441.3,0.14739033]
[1769917551836,0.15518126,2442.5,2441.3,0.14739033]
[1769917552239,3.71235204,2442.4,2441.3,0.14739033]
[1769917552436,0.00520749,2442.7,2441.5,0.14739033]
[1769917552636,0.16038875,2442.7,2441.7,0.14739033]
[1769917555539,0.00520749,2442.7,2442.3,0.14739033]
[1769917555740,0.16038875,2442.7,2442.2,1.70884212]
[1769917561443,0.16038875,2442.7,2442.2,1.85623245]
[1769917561639,0.00520749,2442.7,2442.2,1.85623245]
[1769917563148,2.58250885,2443.1,2442.3,0.14739033]
[1769917563443,3.73159573,2443.0,2442.5,1.85623245]
[1769917563744,0.15518126,2443.1,2442.5,1.85623245]
[1769917564046,2.42732759,2443.3,2442.6,0.14739033]
[1769917564246,2.43203954,2443.3,2442.6,0.14739033]
[1769917564645,2.5872208,2443.3,2442.6,0.14739033]
[1769917564945,0.15989321,2443.3,2442.6,0.14739033]
[1769917565538,2.5872208,2443.3,2442.6,0.14739033]
[1769917565942,2.5872208,2443.3,2442.4,2.403]
[1769917565943,36.24543055,2443.6,2443.1,1.70884212]
[1769917566249,0.15518126,2443.8,2443.1,1.70884212]
[1769917566540,0.15518126,2443.8,2442.4,4.25923245]
[1769917566541,36.24543055,2443.7,2442.4,4.25923245]
[1769917566740,0.15518126,2443.5,2442.4,4.25923245]
[1769917566943,0.1600875,2443.5,2442.7,1.85623245]
[1769917567943,0.1600875,2443.5,2442.4,4.26352029]
[1769917569348,0.1600875,2443.5,2442.5,0.14834892]
[1769917570348,0.15268098,2443.4,2442.4,2.40632925]
[1769917570548,0.14704896,2443.1,2441.9,0.14834892]
[1769917571641,0.14704896,2443.1,2441.9,0.153403]
[1769917573356,0.14750593,2443.0,2441.9,0.153403]
[1769917573949,0.14750593,2442.9,2441.9,0.153403]
[1769917575148,36.24543055,2443.1,2441.9,0.153403]
[1769917575149,0.1473222,2443.0,2441.9,0.153403]
[1769917576054,3.68224308,2442.9,2441.9,0.153403]
[1769917576252,3.68224308,2442.8,2441.9,0.153403]
[1769917576452,3.68224308,2442.7,2441.9,0.153403]
[1769917576652,0.1473222,2443.0,2441.9,0.153403]
[1769917576854,3.67014896,2442.9,2441.9,0.153403]
[1769917577054,0.1473222,2443.0,2441.9,0.153403]
[1769917577254,0.14653373,2443.4,2442.0,0.14834892]
[1769917577454,36.39687052,2443.5,2442.2,0.14834892]
[1769917577654,0.14653373,2443.4,2442.2,0.14834892]
[1769917579659,0.00490624,2443.5,2442.2,0.14834892]
[1769917580761,0.00490624,2443.5,2442.3,0.14834892]
[1769917582355,0.00490624,2443.5,2442.4,0.14834892]
[1769917582658,0.00490624,2443.5,2442.5,0.14834892]
[1769917584058,3.60908176,2443.4,2442.5,0.14834892]
[1769917584255,0.14474864,2443.4,2442.5,0.14834892]
[1769917584561,0.14474864,2443.2,2442.4,0.87634559]
[1769917584753,0.14474864,2443.0,2442.2,0.14834892]
[1769917589869,3.60717754,2442.9,2442.2,0.14834892]
[1769917590173,0.14474864,2443.0,2442.2,0.14834892]
[1769917595078,0.14280871,2443.2,2442.2,0.14834892]
[1769917598473,36.24543055,2443.2,2442.5,0.15768037]
[1769917598679,36.38838011,2443.2,2442.5,0.15768037]
[1769917598877,0.14294956,2443.1,2442.2,0.15768037]
[1769917599784,36.24543055,2443.2,2442.2,0.15768037]
[1769917599981,36.24543055,2443.2,2442.5,0.15768037]
[1769917600281,0.14302474,2443.1,2442.2,0.15768037]
[1769917601083,0.14267496,2442.9,2442.1,2.403]
[1769917601485,0.14267496,2442.8,2441.9,0.00505408]
[1769917602183,36.24543055,2442.9,2442.2,0.1526408]
[1769917603086,0.1429282,2442.8,2441.9,0.15769488]
[1769917606388,0.14277627,2442.5,2441.8,2.71399781]
[1769917606590,36.38820682,2442.5,2441.8,2.71399781]
[1769917606791,0.14277627,2442.4,2441.8,2.71399781]
[1769917607088,0.14277627,2442.4,2441.8,2.57122154]
[1769917607383,0.14277627,2442.4,2441.8,2.57457384]
[1769917613287,0.14277627,2442.4,2441.8,0.0033523]
[1769917613492,36.24543055,2442.3,2441.1,0.1618132]
[1769917613692,36.24543055,2442.1,2441.1,0.1618132]
[1769917614290,36.24543055,2442.2,2441.1,0.1618132]
[1769917614495,36.24543055,2442.5,2441.1,0.16659832]
[1769917616396,36.24543055,2442.8,2441.2,0.16181747]
[1769917616699,36.24543055,2442.8,2441.3,0.16181747]
[1769917620901,36.24543055,2442.7,2441.3,0.16181747]
[1769917623095,36.45038055,2442.4,2441.3,0.16181747]
[1769917623298,36.24543055,2442.1,2441.2,4.097]
[1769917623503,36.24543055,2441.7,2441.1,0.00478512]
[1769917623799,36.24543055,2441.5,2440.6,0.16224301]
[1769917623999,36.24543055,2441.4,2440.2,6.5]
[1769917624200,12.46093239,2441.5,2440.3,0.16224301]
[1769917624201,43.84843055,2441.5,2440.3,0.16224301]
[1769917624899,43.84843055,2441.5,2440.3,0.16636848]
[1769917626001,2.41446296,2441.4,2440.3,0.16636848]
[1769917626301,10.01746296,2441.5,2440.3,0.16636848]
[1769917629399,3.58108392,2441.4,2440.3,0.16636848]
[1769917629609,0.00519643,2441.7,2440.3,0.16636848]
[1769917630699,3.56927869,2441.6,2440.3,0.16636848]
[1769917630899,3.56922462,2441.5,2440.3,0.16636848]
[1769917631099,0.00519643,2441.7,2440.3,0.16636848]
[1769917631309,3.56893745,2441.6,2440.3,0.16636848]
[1769917631605,3.56893745,2441.5,2440.3,0.16636848]
[1769917631806,0.00519643,2441.7,2440.3,0.16636848]
[1769917631997,3.56924839,2441.6,2440.3,0.16636848]
[1769917632201,3.56924839,2441.5,2440.3,0.16636848]
[1769917632405,0.00519643,2441.7,2440.3,0.16636848]
[1769917632607,3.5692074,2441.6,2440.3,0.16636848]
[1769917632907,3.5692074,2441.5,2440.3,0.16636848]
[1769917633107,0.00519643,2441.7,2440.3,0.16636848]
[1769917633307,3.56986626,2441.6,2440.3,0.16636848]
[1769917633507,3.56986626,2441.5,2440.3,0.16636848]
[1769917633708,0.00519643,2441.7,2440.3,0.16636848]
[1769917634009,3.56995228,2441.6,2440.3,0.16636848]
[1769917634208,0.00519643,2441.7,2440.3,0.16636848]
[1769917637300,0.00519643,2441.7,2440.7,0.16230126]
[1769917638506,2.41446296,2442.3,2440.8,0.16230126]
[1769917639004,3.57478311,2442.2,2440.8,0.16230126]
[1769917639310,3.57478311,2442.1,2440.8,0.16230126]
[1769917639615,0.00448091,2442.1,2440.8,0.16230126]
[1769917640306,0.00448091,2442.1,2440.9,0.16239823]
[1769917640511,0.00448091,2442.1,2441.1,0.16239823]
[1769917644618,2.41446296,2442.5,2441.2,0.16268272]
[1769917644816,2.41446296,2442.6,2441.2,0.16268272]
[1769917645618,2.41861798,2442.6,2441.2,0.16268272]
[1769917646216,2.41861798,2442.6,2441.3,0.16272829]
[1769917653128,0.00415502,2442.6,2441.5,0.16153647]
[1769917657129,3.5916337,2442.5,2441.5,0.16153647]
[1769917657329,0.00415502,2442.6,2441.5,0.16153647]
[1769917657531,3.59174065,2442.5,2441.5,0.16153647]
[1769917657831,0.00415502,2442.6,2441.5,0.16153647]
[1769917658035,3.59212161,2442.5,2441.5,0.16153647]
[1769917658236,0.00415502,2442.6,2441.5,0.16153647]
[1769917658435,3.59319795,2442.5,2441.5,0.16153647]
[1769917658635,0.00415502,2442.6,2441.5,0.16153647]
[1769917661133,1e-08,2442.6,2441.6,0.1636336]
[1769917661332,2.41446296,2443.1,2441.7,0.1636336]
[1769917661538,2.41446296,2443.1,2441.9,0.1636336]
[1769917662238,2.41859306,2443.1,2441.9,0.1636336]
[1769917664945,0.0041301,2443.1,2441.9,0.1636336]
[1769917665447,2.41859306,2443.1,2441.9,0.1636336]
[1769917666444,0.0041301,2443.1,2441.9,0.1636336]
[1769917667135,0.0041301,2443.1,2441.9,0.3686236]
[1769917667342,2.41446296,2443.5,2442.1,0.16320111]
[1769917667639,2.41446296,2443.6,2442.3,0.16320111]
[1769917668541,2.4178768,2443.6,2442.3,0.1662485]
[1769917668743,0.00341384,2443.6,2442.3,0.1662485]
[1769917673145,4.85793239,2444.1,2442.3,0.1662485]
[1769917673146,2.41446296,2444.1,2442.6,0.16192]
[1769917673349,2.41446296,2444.3,2442.8,0.16192]
[1769917673848,2.41446296,2444.4,2442.9,0.16192]
[1769917674143,2.41871267,2444.4,2442.9,0.16192]
[1769917675149,0.00424971,2444.4,2442.9,0.16192]
[1769917680755,2.41871267,2444.4,2442.9,0.16192]
[1769917682848,0.00424971,2444.4,2442.9,0.16192]
[1769917684260,0.00424971,2444.4,2442.9,2.60150025]
[1769917684454,3.331,2445.0,2442.8,3.66863261]
[1769917684455,2.41446296,2445.1,2443.3,0.16331449]
[1769917684660,2.41446296,2445.1,2443.4,0.16331449]
[1769917684849,2.41446296,2445.1,2443.6,0.16331449]
[1769917685253,2.41446296,2445.0,2443.6,0.16331449]
[1769917685459,2.41771983,2445.0,2443.6,0.16331449]
[1769917694161,2.41446296,2444.9,2443.6,0.16331449]
[1769917695566,2.41446296,2444.9,2443.8,0.16390481]
[1769917697270,2.41446296,2444.8,2443.8,0.16390481]
[1769917698666,4.12116953,2444.6,2443.3,4.25909114]
[1769917698964,2.41446296,2444.5,2443.4,0.16409114]
[1769917699364,2.41446296,2444.5,2443.5,0.1640656]
[1769917699564,2.41446296,2444.6,2443.5,0.1640656]
[1769917702976,2.41446296,2444.6,2443.6,0.1667559]
[1769917703374,2.41446296,2444.5,2443.6,0.1667559]
[1769917706178,2.41446296,2444.4,2443.6,0.1667559]
[1769917706979,2.41446296,2444.3,2443.4,0.16664972]
[1769917707179,2.41446296,2444.2,2443.4,0.16664972]
[1769917709582,2.41446296,2444.2,2443.2,6.70003671]
[1769917710184,2.41446296,2444.2,2443.3,0.16645646]
[1769917711278,2.41446296,2444.1,2443.3,0.16645646]
[1769917715382,2.41446296,2444.0,2443.0,2.60582179]
[1769917715589,2.41446296,2443.9,2443.0,0.16624154]
[1769917717293,2.41446296,2444.0,2443.0,0.16624154]
[1769917717495,2.41446296,2444.2,2443.2,0.1660261]
[1769917717693,2.41446296,2444.2,2443.3,0.1660261]
[1769917717990,2.41446296,2444.3,2443.5,0.1660261]
[1769917718186,2.41446296,2444.5,2443.6,0.1660261]
[1769917718691,2.43194241,2444.5,2443.6,0.1660261]
[1769917719290,2.43194241,2444.6,2443.6,0.1660261]
[1769917720291,2.43194241,2444.5,2443.6,0.1660261]
[1769917720695,2.43194241,2444.6,2443.6,0.1660261]
[1769917721593,2.43194241,2444.5,2443.6,0.1660261]
[1769917722485,2.43194241,2444.8,2443.9,0.16667142]
[1769917722691,2.43194241,2444.9,2444.1,0.16667142]
[1769917722890,2.43194241,2444.9,2444.1,0.17082527]
[1769917723294,2.43519928,2445.0,2444.1,0.17082527]
[1769917730100,2.43194241,2444.9,2444.1,0.17082527]
[1769917731002,2.43194241,2444.7,2443.5,0.16667435]
[1769917731196,2.43194241,2444.6,2443.5,0.16667435]
[1769917731397,2.43194241,2444.5,2443.4,3.83]
[1769917731592,2.43194241,2444.5,2443.4,3.99667435]
[1769917731998,2.43194241,2444.5,2443.4,4.00182454]
[1769917732598,2.43194241,2444.4,2443.4,4.00182454]
[1769917734904,2.43194241,2444.4,2443.5,0.1664583]
[1769917735506,2.43070329,2444.4,2443.5,0.1664583]
[1769917736197,2.43070329,2444.4,2443.4,3.83515019]
[1769917736400,2.43070329,2444.2,2443.4,3.83515019]
[1769917736701,2.43070329,2444.2,2443.2,4.095]
[1769917736702,2.43070329,2444.0,2443.2,4.095]
[1769917736903,2.43070329,2443.9,2443.2,4.095]
[1769917737703,2.43070329,2443.8,2443.2,4.09995131]
[1769917739105,2.43070329,2443.8,2443.2,4.08704318]
[1769917740408,2.43070329,2443.7,2443.2,0.00495131]
[1769917740602,2.43070329,2443.7,2442.8,3.44]
[1769917741106,2.43070329,2443.6,2442.3,0.16875659]
[1769917741303,2.43070329,2443.7,2442.3,0.16875659]
[1769917741501,2.43070329,2443.7,2442.3,0.17379508]
[1769917746107,2.43070329,2443.8,2442.3,0.17379508]
[1769917748114,2.43070329,2443.6,2442.3,0.17379508]
[1769917753413,2.63558329,2443.3,2442.3,0.00503849]
[1769917753619,2.43070329,2443.1,2442.3,0.00503849]
[1769917753822,2.43565727,2443.1,2442.3,0.00503849]
[1769917754819,2.43565727,2443.1,2441.9,0.17167387]
[1769917755326,2.43070329,2443.0,2441.9,0.17167387]
[1769917755721,2.43070329,2443.0,2441.9,0.17486214]
[1769917756121,2.43070329,2443.0,2441.9,0.00318827]
[1769917757718,2.43070329,2442.9,2441.9,0.00318827]
[1769917758419,2.43070329,2442.8,2441.9,0.00318827]
[1769917759014,8.152,2442.7,2441.9,0.00318827]
[1769917759719,8.152,2442.7,2441.5,0.18104899]
[1769917759916,2.43070329,2442.6,2441.3,0.18104899]
[1769917760219,2.43070329,2442.6,2441.1,4.27704899]
[1769917760220,2.43070329,2442.4,2441.1,4.27704899]
[1769917760420,2.43070329,2442.4,2441.2,0.18104899]
[1769917760820,2.43070329,2442.4,2441.2,0.18459112]
[1769917763523,2.43070329,2442.3,2441.2,0.18459112]
[1769917764125,2.43070329,2442.4,2441.2,0.18459112]
[1769917764324,2.43070329,2442.3,2441.2,0.18459112]
[1769917766327,36.24543055,2442.4,2441.2,0.18459112]
[1769917766527,2.42698652,2442.3,2441.2,0.18459112]
[1769917766917,2.42698652,2442.6,2441.3,0.1791605]
[1769917767127,2.42698652,2442.8,2441.3,0.1791605]
[1769917767826,2.42698652,2442.7,2441.3,0.1791605]
[1769917768328,2.42698652,2443.0,2441.4,0.1791605]
[1769917768521,2.42698652,2443.0,2441.6,0.1791605]
[1769917769032,2.42698652,2442.8,2441.6,0.1791605]
[1769917769727,2.42698652,2443.0,2441.7,0.17958821]
[1769917769927,36.25038453,2443.1,2441.7,0.17958821]
[1769917769928,2.4319405,2443.1,2441.7,0.17958821]
[1769917771023,0.00495398,2443.1,2441.7,0.17958821]
[1769917771228,0.00495398,2443.1,2441.8,0.17748902]
[1769917773229,0.00495398,2443.1,2441.9,0.17762516]
[1769917777126,0.00495398,2443.1,2441.9,3.84625777]
[1769917777326,0.00495398,2443.1,2442.0,0.17672199]
[1769917778935,2.42698652,2443.6,2442.2,0.17655599]
[1769917779127,2.42698652,2443.9,2442.5,0.17655599]
[1769917779329,2.42698652,2444.1,2442.7,0.17655599]
[1769917779626,2.42698652,2444.2,2442.7,0.17655599]
[1769917780028,2.4304923,2444.2,2442.7,0.17655599]
[1769917780223,0.00350578,2444.2,2442.7,0.17655599]
[1769917782436,0.00350578,2444.2,2442.9,0.17641863]
[1769917785432,0.00350578,2444.2,2442.9,0.38131863]
[1769917785634,0.00350578,2444.2,2443.0,0.17610286]
[1769917785934,0.00350578,2444.2,2443.2,0.17610286]
[1769917786730,2.42698652,2445.0,2443.2,0.17610286]
[1769917786931,2.42698652,2445.0,2443.3,0.17610286]
[1769917787735,0.0045332,2445.0,2443.3,0.17610286]
[1769917788532,2.43151972,2445.0,2443.3,0.17610286]
[1769917790235,0.0045332,2445.0,2443.3,0.17610286]
[1769917793939,0.0045332,2445.0,2443.3,0.38097286]
[1769917794143,0.0045332,2445.0,2443.5,0.17533337]
[1769917794344,0.0045332,2445.0,2443.7,0.17533337]
[1769917795648,0.0045332,2445.0,2444.0,0.17623253]
[1769917799951,3.61970639,2444.9,2444.0,0.17623253]
[1769917800148,2.43151972,2445.0,2444.0,0.17623253]
[1769917800354,0.0045332,2445.0,2444.3,0.17600003]
[1769917801952,3.60478252,2444.9,2443.7,0.17616215]
[1769917802155,3.60478252,2444.8,2443.7,0.17616215]
[1769917802359,2.43151972,2445.0,2443.7,0.17616215]
[1769917802562,6.03751146,2445.0,2443.7,0.17616215]
[1769917802756,2.42698652,2444.8,2443.7,0.17616215]
[1769917803053,6.03297826,2444.8,2443.7,0.17616215]
[1769917803852,6.03297826,2444.7,2443.7,0.17616215]
[1769917804051,3.60599174,2444.6,2443.7,0.17616215]
[1769917804250,3.60599174,2444.5,2443.7,0.17616215]
[1769917804457,2.42698652,2444.7,2443.7,0.17616215]
[1769917804755,6.03664929,2444.7,2443.7,0.17616215]
[1769917804956,2.42698652,2444.5,2443.6,4.095]
[1769917805157,6.03664929,2444.4,2443.6,4.095]
[1769917805458,3.60966277,2444.3,2443.6,4.27173116]
[1769917805755,3.60966277,2444.2,2443.3,0.17673116]
[1769917805954,3.60966277,2444.1,2443.5,0.17673116]
[1769917806257,36.24543055,2444.5,2443.8,0.17673116]
[1769917806258,2.42698652,2444.5,2443.8,0.17673116]
[1769917806457,3.61311965,2444.4,2443.8,0.17673116]
[1769917806657,3.61311965,2444.3,2443.8,0.17673116]
[1769917806859,2.42698652,2444.5,2443.8,0.17673116]
[1769917808057,3.63329701,2444.4,2443.8,0.17673116]
[1769917808259,6.06028353,2444.3,2443.0,0.20991786]
[1769917808562,3.63329701,2444.2,2443.0,0.20991786]
[1769917808754,3.63329701,2444.1,2443.0,0.20991786]
[1769917808956,2.42698652,2444.3,2443.0,0.20991786]
[1769917809162,3.66810195,2444.2,2443.0,0.20991786]
[1769917809461,3.66810195,2444.1,2443.0,0.00502786]
[1769917809652,3.66810195,2444.0,2443.0,0.00502786]
[1769917809957,3.66971986,2443.9,2443.0,0.00502786]
[1769917810155,36.27282356,2444.3,2443.0,0.00502786]
[1769917810156,2.42698652,2444.1,2443.1,0.15839111]
[1769917810356,3.67025944,2444.0,2443.1,0.15839111]
[1769917810556,3.67025944,2443.9,2443.1,0.15839111]
[1769917810756,2.42698652,2444.1,2443.1,0.15839111]
[1769917810962,3.67033617,2444.0,2443.1,0.15839111]
[1769917811162,3.67033617,2443.9,2443.1,0.15839111]
[1769917811364,2.42698652,2444.1,2443.1,0.15839111]
[1769917811560,3.67070373,2444.0,2443.1,0.15839111]
[1769917811761,3.67070373,2443.9,2443.1,0.15839111]
[1769917812062,2.42698652,2444.1,2443.1,0.15839111]
[1769917812264,3.67093485,2444.0,2443.1,0.15839111]
[1769917812463,3.67093485,2443.9,2443.1,0.15839111]
[1769917812658,2.42698652,2444.1,2443.1,0.15839111]
[1769917812859,3.67082515,2444.0,2443.1,0.15839111]
[1769917813060,3.67082515,2443.9,2443.1,0.15839111]
[1769917813260,2.42698652,2444.2,2443.1,0.15839111]
[1769917813461,3.65700227,2444.1,2443.1,0.15839111]
[1769917813761,3.65700227,2444.0,2443.1,0.15839111]
[1769917814066,3.65700227,2443.9,2443.1,0.15839111]
[1769917814259,2.41698652,2444.2,2443.1,0.15839111]
[1769917814460,3.65702375,2444.1,2443.1,0.15839111]
[1769917814660,3.65702375,2444.0,2443.1,0.15839111]
[1769917814860,3.65702375,2443.9,2443.1,0.15839111]
[1769917815064,2.41698652,2444.2,2443.1,0.15839111]
[1769917815361,3.65686696,2444.1,2443.1,0.15839111]
[1769917815562,3.65686696,2444.0,2443.1,0.15839111]
[1769917815765,3.65686696,2443.9,2443.1,0.15839111]
[1769917816065,2.41698652,2444.2,2443.1,0.15839111]
[1769917818268,0.02814923,2444.1,2443.1,0.15839111]
[1769917822469,0.02846173,2443.9,2443.0,0.00502786]
[1769917822961,0.02846173,2443.9,2443.0,0.16341897]
[1769917825270,36.24543055,2444.0,2443.0,0.16341897]
[1769917825663,36.27429772,2444.0,2443.0,0.16341897]
[1769917827675,36.27429772,2444.0,2443.2,0.15839111]
[1769917828372,3.62653034,2443.9,2443.2,0.15839111]
[1769917828668,3.62653034,2443.8,2443.2,0.15839111]
[1769917828865,36.27429772,2444.0,2443.2,0.15839111]
[1769917828866,3.62653034,2443.7,2443.2,0.15839111]
[1769917829068,0.02886717,2444.0,2443.2,0.15839111]
[1769917829270,3.62724773,2443.9,2443.2,0.15839111]
[1769917829470,3.62724773,2443.8,2443.2,0.15839111]
[1769917829665,3.62724773,2443.7,2443.2,0.15839111]
[1769917829970,0.02886717,2444.0,2443.2,0.15839111]
[1769917831271,0.0277036,2443.9,2443.0,0.16341897]
[1769917836574,0.02646916,2443.8,2443.0,0.16341897]
[1769917836974,0.02646916,2443.8,2443.0,0.00502786]
[1769917837274,0.02651129,2443.7,2443.0,0.00502786]
[1769917837774,0.02651129,2443.7,2443.0,0.15838507]
[1769917844379,36.27194184,2443.7,2443.0,0.15838507]
[1769917844577,0.02594122,2443.6,2443.0,0.15838507]
[1769917844774,36.27137177,2443.6,2443.0,0.00502786]
[1769917845680,0.02594122,2443.6,2443.0,0.00502786]
[1769917847082,36.27137177,2443.6,2443.0,0.00502786]
[1769917849275,0.02591776,2443.5,2443.0,0.00502786]
[1769917850182,0.02591776,2443.5,2443.0,0.15671773]
[1769917850383,36.27134831,2443.6,2443.0,0.15671773]
[1769917850982,36.24543055,2443.6,2443.0,0.15671773]
[1769917853583,36.24543055,2443.7,2443.0,0.15671773]
[1769917857389,44.65043055,2443.8,2443.0,0.15671773]
[1769917857589,36.24543055,2443.9,2443.0,0.15671773]
[1769917858085,36.24543055,2444.0,2443.0,0.15671773]
[1769917858287,36.24543055,2444.4,2443.2,0.15168987]
[1769917858480,36.28472281,2444.5,2443.4,0.15168987]
[1769917858785,36.28472281,2444.5,2443.5,0.15168987]
[1769917859989,36.24543055,2444.6,2443.5,0.15168987]
[1769917860184,0.03929422,2444.5,2443.5,0.15168987]
[1769917860384,0.03929422,2444.3,2443.3,0.15168987]
[1769917860685,44.82643055,2444.4,2443.3,0.15168987]
[1769917860986,44.86572477,2444.4,2443.3,0.15168987]
[1769917861886,36.24543055,2444.5,2443.4,0.15168987]
[1769917862084,0.03928739,2444.6,2443.5,0.15168987]
[1769917862284,0.03928739,2444.5,2443.3,2.60547608]
[1769917862485,0.03928739,2444.3,2443.3,0.15168987]
[1769917865183,36.24543055,2444.5,2443.3,0.15168987]
[1769917865390,36.28427092,2444.7,2443.4,0.15168987]
[1769917865586,36.28427092,2444.7,2443.5,0.15168987]
[1769917865787,0.03884037,2444.5,2443.5,0.15168987]
[1769917866687,0.03884037,2444.4,2443.5,0.15168987]
[1769917868188,0.03874079,2444.3,2443.5,0.15168987]
[1769917869092,0.03874079,2444.3,2443.2,0.14573219]
[1769917869494,0.03903924,2444.1,2443.2,0.14573219]
[1769917871495,36.28446979,2444.1,2443.2,0.14573219]
[1769917872297,0.03903424,2444.0,2443.2,0.14573219]
[1769917874297,2.47946483,2444.0,2443.2,0.14573219]
[1769917874698,0.03887122,2443.9,2443.2,0.14573219]
[1769917874899,0.03887122,2443.8,2443.1,2.402]
[1769917875399,2.44043059,2443.9,2443.0,0.15076005]
[1769917879008,2.44043059,2444.3,2443.3,0.14573219]
[1769917879307,2.44043059,2444.3,2443.1,3.67438593]
[1769917879308,0.03327513,2444.1,2443.1,2.5995184]
[1769917879508,2.47370572,2444.0,2443.1,0.14573219]
[1769917882205,0.03369791,2443.8,2443.0,0.00502786]
[1769917882507,2.4741285,2443.8,2443.0,0.15076005]
[1769917882910,2.44043059,2443.7,2443.0,0.15076005]
[1769917883110,2.4741285,2443.8,2443.0,0.15076005]
[1769917884212,2.44043059,2443.7,2443.0,0.15076005]
[1769917884810,2.47411607,2443.7,2443.0,0.15076005]
[1769917885012,2.47583572,2443.7,2443.0,0.15076005]
[1769917889616,2.44043059,2443.5,2443.0,0.15076005]
[1769917894920,2.47762541,2443.5,2443.0,0.15076005]
[1769917895425,38.68586114,2443.6,2443.0,0.15076005]
[1769917895613,2.44043059,2443.8,2443.0,0.15076005]
[1769917896016,2.44043059,2444.0,2443.0,0.15076005]
[1769917896724,2.44043059,2444.1,2443.2,0.14573219]
[1769917897315,36.24543055,2444.2,2443.2,0.14573219]
[1769917897516,16.23064364,2446.3,2444.0,1.70785225]
[1769917897723,32.837,2446.2,2444.9,0.41527452]
[1769917897922,2.44410218,2445.1,2444.1,8.63991396]
[1769917898124,8.84,2445.3,2444.2,4.78149478]
[1769917898325,11.28410218,2445.3,2444.3,4.78149478]
[1769917898527,2.44410218,2444.9,2444.4,4.78149478]
[1769917898722,2.44410218,2444.9,2444.5,4.78149478]
[1769917898925,2.44410218,2444.7,2444.6,4.78149478]
[1769917899123,24.0,2445.1,2444.6,4.78149478]
[1769917899324,8.84381199,2445.3,2444.3,0.00494628]
[1769917899523,24.0,2445.2,2444.4,4.87657706]
[1769917899720,24.0,2445.2,2444.5,4.87657706]
[1769917899924,24.0,2445.2,2444.3,0.00494628]
[1769917900225,24.0,2445.2,2444.4,4.80558428]
[1769917900426,24.0,2445.2,2444.5,4.80558428]
[1769917900725,24.0,2445.2,2444.3,0.00494628]
[1769917900923,24.0,2445.2,2444.4,4.80330696]
[1769917901227,24.0,2445.2,2444.3,0.00494628]
[1769917901428,24.0,2445.2,2444.4,4.80134992]
[1769917901628,24.0,2445.2,2444.3,0.00494628]
[1769917901929,24.0,2445.2,2444.4,4.76949993]
[1769917902122,24.0,2445.2,2444.3,0.00494628]
[1769917902522,4.095,2445.2,2443.7,0.1641622]
[1769917902729,23.99505372,2445.1,2443.8,4.76814321]
[1769917902928,23.99505372,2445.1,2443.9,4.76814321]
[1769917903227,23.99505372,2445.1,2444.0,4.76814321]
[1769917903423,23.99505372,2445.1,2444.1,4.76814321]
[1769917903630,23.99505372,2445.1,2444.0,0.00508884]
[1769917903829,23.99505372,2445.1,2444.1,4.72177059]
[1769917904126,4.095,2445.2,2444.0,0.00508884]
[1769917904328,23.99505372,2445.1,2444.0,0.00508884]
[1769917905227,23.99505372,2445.1,2444.0,0.16892175]
[1769917905428,23.99505372,2445.1,2444.2,0.16383291]
[1769917905627,8.865,2445.0,2444.2,0.16383291]
[1769917906026,23.99505372,2444.9,2444.2,0.16383291]
[1769917906733,23.99505372,2444.9,2444.3,4.66353906]
[1769917907028,23.99505372,2444.9,2444.0,0.00508884]
[1769917909730,23.99505372,2444.9,2444.1,4.7429193]
[1769917909934,23.99505372,2444.9,2444.0,0.00508884]
[1769917910234,23.99505372,2444.9,2444.1,4.74291952]
[1769917910432,23.99505372,2444.9,2444.0,0.00508884]
[1769917910736,23.99505372,2444.9,2444.1,4.74269082]
[1769917911034,23.99505372,2444.9,2444.0,0.00508884]
[1769917911234,23.99505372,2444.9,2444.1,4.74078016]
[1769917911533,23.99505372,2444.9,2444.0,0.00508884]
[1769917911735,23.99505372,2444.9,2444.1,4.74058306]
[1769917912035,23.99505372,2444.9,2444.0,0.00508884]
[1769917912635,0.00381199,2445.3,2444.2,0.16277408]
[1769917912934,19.90004173,2445.2,2444.5,0.16277408]
[1769917913134,19.90004173,2445.2,2444.6,4.71966162]
[1769917913335,19.90004173,2445.2,2444.7,4.88243979]
[1769917913636,0.20467,2445.7,2444.9,0.16277817]
[1769917913836,19.90004173,2445.6,2444.5,0.16277817]
[1769917914037,19.90004173,2445.6,2444.6,4.68536656]
[1769917914336,19.90004173,2445.6,2444.7,4.68536656]
[1769917914536,4.0912,2445.4,2444.6,4.68414335]
[1769917914736,0.00375682,2445.4,2444.2,5.06269213]
[1769917914936,19.90004173,2445.3,2444.3,4.83142702]
[1769917915240,19.90004173,2445.3,2444.4,4.67017498]
[1769917915438,10.3962,2445.2,2444.5,4.67017498]
[1769917915632,19.90004173,2445.1,2444.2,4.66985676]
[1769917915938,19.90004173,2445.1,2444.3,4.66985676]
[1769917915939,23.99124173,2445.1,2444.3,4.66985676]
[1769917916133,4.0912,2445.0,2444.1,0.16125204]
[1769917916335,4.0912,2445.0,2444.2,4.83106627]
[1769917916534,19.90004173,2444.9,2444.3,4.66981423]
[1769917916734,4.0912,2445.0,2444.2,0.16125204]
[1769917917039,4.0912,2444.9,2444.3,4.67003287]
[1769917917237,4.0912,2445.0,2444.2,0.16125204]
[1769917917439,4.0912,2445.0,2444.3,4.67040735]
[1769917917736,4.0912,2444.9,2444.2,0.16125204]
[1769917918041,19.90004173,2444.9,2444.3,4.67040212]
[1769917918339,6.305,2445.2,2444.5,0.16083823]
[1769917918540,19.90004173,2445.1,2444.5,0.16083823]